fUSD/lending_fUSD_20240409
["ID","MTS","AMOUNT","RATE_DAILY","PERIOD"]
[321935876,1712643041969,-604.1,0.00020821,2]
[321935877,1712643041978,-500.0,0.00020821,2]
[321935879,1712643041988,-500.0,0.00020821,2]
[321935882,1712643041997,-503.02377822,0.00020821,2]
[321935884,1712643042007,-500.0,0.00020821,2]
[321935886,1712643042016,-502.77388539,0.00020821,2]
[321935888,1712643042026,-500.0,0.00020821,2]
[321935889,1712643042035,-500.0,0.00020821,2]
[321935891,1712643042044,-500.0,0.00020821,2]
[321935893,1712643042053,-500.0,0.00020821,2]
[321935895,1712643042062,-708.54,0.00020821,2]
[321935897,1712643042072,-359.75050188,0.00020821,2]
[321935899,1712643042081,-1078.07,0.00020821,2]
[321935901,1712643042090,-593.55,0.00020821,2]
[321935903,1712643042100,-678.95,0.00020821,2]
[321935905,1712643042109,-559.98,0.00020821,2]
[321935907,1712643042118,-500.0,0.00020821,2]
[321935909,1712643042127,-568.37,0.00020821,2]
[321935911,1712643042137,-584.9,0.00020821,2]
[321935913,1712643042146,-1358.38,0.00020821,2]
[321935915,1712643042155,-500.0,0.00020821,2]
[321935917,1712643042164,-2905.83,0.00020821,2]
[321935919,1712643042173,-500.0,0.00020821,2]
[321935921,1712643042182,-500.0,0.00020821,2]
[321935923,1712643042191,-500.0,0.00020821,2]
[321935925,1712643042201,-500.0,0.00020821,2]
[321935927,1712643042210,-500.0,0.00020821,2]
[321935929,1712643042219,-500.0,0.00020821,2]
[321935931,1712643042229,-765.06,0.00020821,2]
[321935933,1712643042238,-563.53,0.00020821,2]
[321935935,1712643042247,-500.0,0.00020821,2]
[321935937,1712643042257,-500.0,0.00020821,2]
[321935939,1712643042266,-1391.84,0.00020821,2]
[321935941,1712643042276,-1940.01,0.00020821,2]
[321935943,1712643042285,-500.0,0.00020821,2]
[321935945,1712643042295,-2075.64,0.00020821,2]
[321935947,1712643042304,-500.0,0.00020821,2]
[321935950,1712643042314,-500.0,0.00020821,2]
[321935952,1712643042323,-500.0,0.00020821,2]
[321935953,1712643042333,-500.0,0.00020821,2]
[321935955,1712643042343,-698.76,0.00020821,2]
[321935958,1712643042353,-500.0,0.00020821,2]
[321935960,1712643042362,-721.43,0.00020821,2]
[321935962,1712643042371,-500.0,0.00020821,2]
[321935964,1712643042381,-500.0,0.00020821,2]
[321935966,1712643042391,-748.11,0.00020821,2]
[321935968,1712643042400,-507.60337668,0.00020821,2]
[321935969,1712643042410,-935.07,0.00020821,2]
[321935972,1712643042419,-500.0,0.00020821,2]
[321935973,1712643042429,-500.0,0.00020821,2]
[321935975,1712643042438,-500.0,0.00020821,2]
[321935977,1712643042447,-500.0,0.00020821,2]
[321935979,1712643042456,-500.0,0.00020821,2]
[321935982,1712643042466,-735.33,0.00020821,2]
[321935983,1712643042475,-500.0,0.00020821,2]
[321935985,1712643042485,-772.68,0.00020821,2]
[321935988,1712643042495,-766.2,0.00020821,2]
[321935990,1712643042504,-500.0,0.00020821,2]
[321935992,1712643042513,-1620.54,0.00020821,2]
[321935994,1712643042523,-505.03048117,0.00020821,2]
[321935995,1712643042532,-500.0,0.00020821,2]
[321935997,1712643042541,-1505.93,0.00020821,2]
[321936000,1712643042551,-505.15518025,0.00020821,2]
[321936002,1712643042560,-500.0,0.00020821,2]
[321936004,1712643042569,-500.0,0.00020821,2]
[321936006,1712643042579,-500.0,0.00020821,2]
[321936008,1712643042588,-205.23285819,0.00020821,2]
[321936010,1712643042597,-504.47188906,0.00020821,2]
[321936012,1712643042607,-500.0,0.00020821,2]
[321936013,1712643042616,-802.56,0.00020821,2]
[321936016,1712643042626,-956.51,0.00020821,2]
[321936018,1712643042636,-530.34358591,0.00020821,2]
[321936020,1712643042644,-500.0,0.00020821,2]
[321936022,1712643042653,-500.0,0.00020821,2]
[321936023,1712643042664,-500.0,0.00020821,2]
[321936024,1712643042673,-548.56680995,0.00020821,2]
[321936025,1712643042682,-500.0,0.00020821,2]
[321936026,1712643042691,-738.47,0.00020821,2]
[321936027,1712643042700,-1967.5,0.00020821,2]
[321936028,1712643042709,-500.0,0.00020821,2]
[321936029,1712643042717,-500.0,0.00020821,2]
[321936031,1712643042727,-500.0,0.00020821,2]
[321936034,1712643042736,-500.0,0.00020821,2]
[321936037,1712643042745,-546.29,0.00020821,2]
[321936040,1712643042753,-500.0,0.00020821,2]
[321936043,1712643042762,-633.62,0.00020821,2]
[321936046,1712643042772,-264.63598757,0.00020821,2]
[321936048,1712643042781,-1693.56,0.00020821,2]
[321936051,1712643042790,-1157.23,0.00020821,2]
[321936054,1712643042799,-950.92,0.00020821,2]
[321936057,1712643042808,-500.0,0.00020821,2]
[321936059,1712643042817,-500.0,0.00020821,2]
[321936061,1712643042827,-1149.82,0.00020821,2]
[321936063,1712643042838,-1146.53,0.00020821,2]
[321936065,1712643042847,-500.0,0.00020821,2]
[321936067,1712643042856,-664.96,0.00020821,2]
[321936069,1712643042866,-500.0,0.00020821,2]
[321936071,1712643042875,-500.0,0.00020821,2]
[321936073,1712643042885,-527.85054017,0.00020821,2]
[321936075,1712643042894,-1006.53,0.00020821,2]
[321936077,1712643042904,-500.0,0.00020821,2]
[321936079,1712643042913,-500.0,0.00020821,2]
[321936081,1712643042922,-500.0,0.00020821,2]
[321936083,1712643042933,-500.0,0.00020821,2]
[321936085,1712643042943,-1328.48,0.00020821,2]
[321936087,1712643042954,-500.0,0.00020821,2]
[321936089,1712643042963,-522.23555095,0.00020821,2]
[321936091,1712643042973,-500.0,0.00020821,2]
[321936093,1712643042983,-500.0,0.00020821,2]
[321936095,1712643042992,-500.0,0.00020821,2]
[321936097,1712643043002,-500.0,0.00020821,2]
[321936099,1712643043011,-500.0,0.00020821,2]
[321936101,1712643043020,-974.07,0.00020821,2]
[321936103,1712643043030,-739.51,0.00020821,2]
[321936105,1712643043039,-500.0,0.00020821,2]
[321936107,1712643043050,-500.0,0.00020821,2]
[321936110,1712643043061,-500.0,0.00020821,2]
[321936112,1712643043072,-1034.75,0.00020821,2]
[321936114,1712643043081,-500.0,0.00020821,2]
[321936115,1712643043090,-2003.05908814,0.00020821,2]
[321936117,1712643043099,-500.0,0.00020821,2]
[321936120,1712643043108,-500.0,0.00020821,2]
[321936122,1712643043117,-1498.22,0.00020821,2]
[321936123,1712643043127,-510.91990082,0.00020821,2]
[321936126,1712643043137,-1994.26,0.00020821,2]
[321936128,1712643043146,-1942.64,0.00020821,2]
[321936130,1712643043155,-500.0,0.00020821,2]
[321936132,1712643043165,-500.0,0.00020821,2]
[321936134,1712643043174,-500.0,0.00020821,2]
[321936136,1712643043184,-500.0,0.00020821,2]
[321936138,1712643043192,-1695.88,0.00020821,2]
[321936140,1712643043201,-516.83039828,0.00020821,2]
[321936142,1712643043210,-521.31,0.00020821,2]
[321936144,1712643043218,-505.43401499,0.00020821,2]
[321936146,1712643043227,-500.0,0.00020821,2]
[321936148,1712643043237,-500.0,0.00020821,2]
[321936150,1712643043246,-500.0,0.00020821,2]
[321936152,1712643043255,-947.46,0.00020821,2]
[321936154,1712643043264,-500.0,0.00020821,2]
[321936156,1712643043273,-1128.06,0.00020821,2]
[321936158,1712643043283,-506.03176628,0.00020821,2]
[321936160,1712643043293,-500.0,0.00020821,2]
[321936162,1712643043302,-500.0,0.00020821,2]
[321936164,1712643043311,-1224.86,0.00020821,2]
[321936166,1712643043322,-2677.53,0.00020821,2]
[321936168,1712643043331,-500.0,0.00020821,2]
[321936170,1712643043340,-500.0,0.00020821,2]
[321936172,1712643043350,-552.48,0.00020821,2]
[321936174,1712643043359,-500.0,0.00020821,2]
[321936176,1712643043368,-500.0,0.00020821,2]
[321936178,1712643043378,-524.55,0.00020821,2]
[321936180,1712643043387,-524.55,0.00020821,2]
[321936182,1712643043396,-524.55,0.00020821,2]
[321936184,1712643043406,-524.55,0.00020821,2]
[321936186,1712643043416,-524.55,0.00020821,2]
[321936188,1712643043426,-524.55,0.00020821,2]
[321936190,1712643043435,-511.54456249,0.00020821,2]
[321936192,1712643043445,-524.55,0.00020821,2]
[321936194,1712643043454,-524.55,0.00020821,2]
[321936196,1712643043464,-836.59,0.00020821,2]
[321936198,1712643043473,-524.55,0.00020821,2]
[321936200,1712643043482,-524.55,0.00020821,2]
[321936203,1712643043492,-524.55,0.00020821,2]
[321936205,1712643043502,-524.55,0.00020821,2]
[321936207,1712643043511,-524.55,0.00020821,2]
[321936209,1712643043520,-504.09437094,0.00020821,2]
[321936211,1712643043530,-500.0,0.00020821,2]
[321936213,1712643043538,-1460.04,0.00020821,2]
[321936216,1712643043547,-500.0,0.00020821,2]
[321936218,1712643043556,-500.0,0.00020821,2]
[321936221,1712643043567,-516.21799279,0.00020821,2]
[321936223,1712643043575,-500.0,0.00020821,2]
[321936225,1712643043584,-500.0,0.00020821,2]
[321936227,1712643043593,-500.0,0.00020821,2]
[321936228,1712643043602,-847.35,0.00020821,2]
[321936230,1712643043611,-515.19210534,0.00020821,2]
[321936232,1712643043620,-500.0,0.00020821,2]
[321936234,1712643043629,-500.0,0.00020821,2]
[321936236,1712643043638,-570.08,0.00020821,2]
[321936238,1712643043647,-500.0,0.00020821,2]
[321936240,1712643043656,-500.0,0.00020821,2]
[321936242,1712643043666,-500.0,0.00020821,2]
[321936245,1712643043675,-500.0,0.00020821,2]
[321936246,1712643043684,-1252.04,0.00020821,2]
[321936249,1712643043694,-500.0,0.00020821,2]
[321936251,1712643043703,-500.0,0.00020821,2]
[321936253,1712643043713,-500.0,0.00020821,2]
[321936255,1712643043722,-500.0,0.00020821,2]
[321936256,1712643043731,-500.0,0.00020821,2]
[321936258,1712643043740,-500.0,0.00020821,2]
[321936260,1712643043750,-500.0,0.00020821,2]
[321936262,1712643043758,-500.0,0.00020821,2]
[321936264,1712643043768,-1505.77,0.00020821,2]
[321936266,1712643043777,-500.0,0.00020821,2]
[321936269,1712643043786,-1538.68,0.00020821,2]
[321936271,1712643043796,-500.0,0.00020821,2]
[321936272,1712643043805,-732.26,0.00020821,2]
[321936274,1712643043816,-500.0,0.00020821,2]
[321936277,1712643043830,-500.0,0.00020821,2]
[321936278,1712643043839,-542.97,0.00020821,2]
[321936281,1712643043853,-500.0,0.00020821,2]
[321936283,1712643043863,-500.0,0.00020821,2]
[321936285,1712643043873,-500.0,0.00020821,2]
[321936287,1712643043883,-1213.15,0.00020821,2]
[321936289,1712643043894,-500.0,0.00020821,2]
[321936292,1712643043904,-758.14,0.00020821,2]
[321936294,1712643043914,-1609.13,0.00020821,2]
[321936296,1712643043924,-500.0,0.00020821,2]
[321936298,1712643043933,-500.0,0.00020821,2]
[321936300,1712643043942,-500.0,0.00020821,2]
[321936302,1712643043952,-1966.24,0.00020821,2]
[321936304,1712643043961,-500.0,0.00020821,2]
[321936306,1712643043971,-1291.86,0.00020821,2]
[321936308,1712643043980,-510.82558716,0.00020821,2]
[321936309,1712643043990,-500.0,0.00020821,2]
[321936310,1712643043999,-528.88180895,0.00020821,2]
[321936343,1712643044322,-538.29609663,0.00020821,2]
[321936345,1712643044331,-500.0,0.00020821,2]
[321936347,1712643044341,-500.0,0.00020821,2]
[321936349,1712643044350,-500.0,0.00020821,2]
[321936351,1712643044359,-500.0,0.00020821,2]
[321936353,1712643044369,-1173.42,0.00020821,2]
[321936355,1712643044378,-500.0,0.00020821,2]
[321936357,1712643044387,-769.67,0.00020821,2]
[321936359,1712643044397,-522.02889052,0.00020821,2]
[321936361,1712643044406,-500.0,0.00020821,2]
[321936363,1712643044416,-2155.59,0.00020821,2]
[321936365,1712643044425,-2001.62,0.00020821,2]
[321936367,1712643044434,-934.89,0.00020821,2]
[321936369,1712643044443,-335.03340429,0.00020821,2]
[321936371,1712643044453,-1489.56,0.00020821,2]
[321936373,1712643044462,-500.0,0.00020821,2]
[321936376,1712643044475,-500.0,0.00020821,2]
[321936378,1712643044484,-500.0,0.00020821,2]
[321936380,1712643044494,-500.0,0.00020821,2]
[321936382,1712643044503,-500.0,0.00020821,2]
[321936384,1712643044513,-546.42,0.00020821,2]
[321936386,1712643044522,-500.0,0.00020821,2]
[321936388,1712643044532,-500.0,0.00020821,2]
[321936390,1712643044541,-500.0,0.00020821,2]
[321936392,1712643044551,-2875.9,0.00020821,2]
[321936394,1712643044560,-1908.72,0.00020821,2]
[321936396,1712643044570,-500.0,0.00020821,2]
[321936398,1712643044579,-975.25,0.00020821,2]
[321936400,1712643044588,-2434.44,0.00020821,2]
[321936402,1712643044597,-500.0,0.00020821,2]
[321936404,1712643044606,-500.0,0.00020821,2]
[321936406,1712643044616,-500.0,0.00020821,2]
[321936408,1712643044625,-935.85,0.00020821,2]
[321936410,1712643044635,-534.90736733,0.00020821,2]
[321936412,1712643044644,-500.0,0.00020821,2]
[321936414,1712643044653,-761.16,0.00020821,2]
[321936416,1712643044663,-522.09349027,0.00020821,2]
[321936418,1712643044672,-500.0,0.00020821,2]
[321936420,1712643044681,-500.0,0.00020821,2]
[321936422,1712643044691,-754.76,0.00020821,2]
[321936425,1712643044700,-500.0,0.00020821,2]
[321936426,1712643044710,-1144.02,0.00020821,2]
[321936429,1712643044719,-500.0,0.00020821,2]
[321936431,1712643044728,-500.0,0.00020821,2]
[321936433,1712643044739,-500.0,0.00020821,2]
[321936435,1712643044748,-562.6,0.00020821,2]
[321936437,1712643044757,-925.74,0.00020821,2]
[321936439,1712643044767,-500.0,0.00020821,2]
[321936441,1712643044776,-500.0,0.00020821,2]
[321936443,1712643044785,-500.0,0.00020821,2]
[321936445,1712643044795,-500.0,0.00020821,2]
[321936447,1712643044804,-1940.62,0.00020821,2]
[321936449,1712643044814,-500.0,0.00020821,2]
[321936451,1712643044828,-500.0,0.00020821,2]
[321936453,1712643044837,-1228.42,0.00020821,2]
[321936455,1712643044847,-528.8397691,0.00020821,2]
[321936457,1712643044856,-500.0,0.00020821,2]
[321936459,1712643044866,-500.0,0.00020821,2]
[321936461,1712643044876,-500.0,0.00020821,2]
[321936463,1712643044885,-529.1567797,0.00020821,2]
[321936465,1712643044895,-765.92,0.00020821,2]
[321936467,1712643044905,-500.0,0.00020821,2]
[321936470,1712643044916,-500.0,0.00020821,2]
[321936472,1712643044926,-687.41,0.00020821,2]
[321936474,1712643044935,-1511.12,0.00020821,2]
[321936476,1712643044944,-500.0,0.00020821,2]
[321936478,1712643044954,-500.0,0.00020821,2]
[321936480,1712643044963,-516.05538374,0.00020821,2]
[321936482,1712643044972,-1129.29,0.00020821,2]
[321936484,1712643044981,-500.0,0.00020821,2]
[321936486,1712643044990,-1571.97,0.00020821,2]
[321936488,1712643044999,-500.0,0.00020821,2]
[321936490,1712643045009,-300.0,0.00020821,2]
[321936492,1712643045020,-500.0,0.00020821,2]
[321936494,1712643045029,-500.0,0.00020821,2]
[321936496,1712643045038,-814.51,0.00020821,2]
[321936498,1712643045047,-500.0,0.00020821,2]
[321936500,1712643045057,-500.0,0.00020821,2]
[321936502,1712643045066,-500.0,0.00020821,2]
[321936504,1712643045076,-500.0,0.00020821,2]
[321936506,1712643045085,-1850.44,0.00020821,2]
[321936508,1712643045095,-1748.09,0.00020821,2]
[321936510,1712643045104,-500.0,0.00020821,2]
[321936512,1712643045113,-508.73,0.00020821,2]
[321936514,1712643045123,-500.0,0.00020821,2]
[321936516,1712643045132,-500.0,0.00020821,2]
[321936518,1712643045141,-500.0,0.00020821,2]
[321936520,1712643045150,-500.0,0.00020821,2]
[321936522,1712643045159,-500.0,0.00020821,2]
[321936524,1712643045168,-1385.28,0.00020821,2]
[321936526,1712643045177,-500.0,0.00020821,2]
[321936528,1712643045186,-500.0,0.00020821,2]
[321936529,1712643045195,-500.0,0.00020821,2]
[321936530,1712643045204,-500.0,0.00020821,2]
[321936531,1712643045214,-2632.98,0.00020821,2]
[321936532,1712643045223,-532.52,0.00020821,2]
[321936533,1712643045231,-1507.62,0.00020821,2]
[321936534,1712643045240,-1008.64,0.00020821,2]
[321936536,1712643045248,-1398.22,0.00020821,2]
[321936538,1712643045258,-572.36,0.00020821,2]
[321936540,1712643045267,-500.0,0.00020821,2]
[321936542,1712643045277,-501.96,0.00020821,2]
[321936544,1712643045286,-500.0,0.00020821,2]
[321936546,1712643045295,-693.23,0.00020821,2]
[321936548,1712643045305,-4791.97,0.00020821,2]
[321936550,1712643045315,-1599.14,0.00020821,2]
[321936552,1712643045325,-495.88049898,0.00020821,2]
[321936554,1712643045335,-500.0,0.00020821,2]
[321936556,1712643045344,-500.0,0.00020821,2]
[321936558,1712643045353,-500.0,0.00020821,2]
[321936560,1712643045363,-1590.29,0.00020821,2]
[321936562,1712643045372,-184.32,0.00020821,2]
[321936564,1712643045382,-500.0,0.00020821,2]
[321936566,1712643045392,-500.0,0.00020821,2]
[321936568,1712643045402,-500.0,0.00020821,2]
[321936570,1712643045411,-556.04,0.00020821,2]
[321936572,1712643045421,-1480.21,0.00020821,2]
[321936574,1712643045431,-547.79,0.00020821,2]
[321936576,1712643045442,-824.98,0.00020821,2]
[321936578,1712643045451,-500.0,0.00020821,2]
[321936580,1712643045460,-500.0,0.00020821,2]
[321936582,1712643045470,-500.0,0.00020821,2]
[321936585,1712643045480,-500.0,0.00020821,2]
[321936587,1712643045489,-204.87706722,0.00020821,2]
[321936589,1712643045499,-2218.13,0.00020821,2]
[321936591,1712643045508,-2487.05,0.00020821,2]
[321936593,1712643045517,-500.0,0.00020821,2]
[321936595,1712643045527,-2262.94,0.00020821,2]
[321936597,1712643045536,-500.0,0.00020821,2]
[321936599,1712643045546,-500.0,0.00020821,2]
[321936601,1712643045555,-609.58,0.00020821,2]
[321936603,1712643045564,-500.0,0.00020821,2]
[321936605,1712643045575,-500.0,0.00020821,2]
[321936607,1712643045586,-500.0,0.00020821,2]
[321936609,1712643045595,-500.0,0.00020821,2]
[321936611,1712643045605,-1326.12,0.00020821,2]
[321936613,1712643045615,-500.0,0.00020821,2]
[321936615,1712643045624,-500.0,0.00020821,2]
[321936618,1712643045634,-1471.66,0.00020821,2]
[321936620,1712643045643,-500.0,0.00020821,2]
[321936623,1712643045653,-500.0,0.00020821,2]
[321936626,1712643045663,-915.08,0.00020821,2]
[321936628,1712643045672,-580.17,0.00020821,2]
[321936631,1712643045682,-1224.68,0.00020821,2]
[321936635,1712643045692,-622.56,0.00020821,2]
[321936638,1712643045701,-500.0,0.00020821,2]
[321936642,1712643045710,-500.0,0.00020821,2]
[321936645,1712643045720,-512.75244615,0.00020821,2]
[321936648,1712643045730,-1345.54,0.00020821,2]
[321936650,1712643045739,-500.0,0.00020821,2]
[321936653,1712643045748,-500.0,0.00020821,2]
[321936656,1712643045758,-500.0,0.00020821,2]
[321936659,1712643045767,-500.0,0.00020821,2]
[321936661,1712643045776,-500.0,0.00020821,2]
[321936664,1712643045786,-500.0,0.00020821,2]
[321936667,1712643045795,-500.0,0.00020821,2]
[321936670,1712643045805,-500.0,0.00020821,2]
[321936672,1712643045814,-728.37,0.00020821,2]
[321936675,1712643045826,-1551.02,0.00020821,2]
[321936678,1712643045837,-654.28,0.00020821,2]
[321936681,1712643045846,-500.0,0.00020821,2]
[321936683,1712643045855,-1024.65,0.00020821,2]
[321936686,1712643045866,-500.0,0.00020821,2]
[321936689,1712643045875,-992.97,0.00020821,2]
[321936691,1712643045884,-500.0,0.00020821,2]
[321936694,1712643045894,-503.49227843,0.00020821,2]
[321936697,1712643045906,-706.61,0.00020821,2]
[321936701,1712643045919,-500.0,0.00020821,2]
[321936704,1712643045928,-500.0,0.00020821,2]
[321936706,1712643045937,-500.0,0.00020821,2]
[321936709,1712643045947,-2889.08,0.00020821,2]
[321936712,1712643045956,-1212.72,0.00020821,2]
[321936714,1712643045966,-500.0,0.00020821,2]
[321936717,1712643045975,-500.0,0.00020821,2]
[321936720,1712643045984,-500.0,0.00020821,2]
[321936723,1712643045994,-500.0,0.00020821,2]
[321936726,1712643046003,-500.0,0.00020821,2]
[321936728,1712643046013,-500.0,0.00020821,2]
[321936731,1712643046022,-500.0,0.00020821,2]
[321936734,1712643046031,-542.01,0.00020821,2]
[321936737,1712643046040,-1689.84,0.00020821,2]
[321936739,1712643046050,-510.58847976,0.00020821,2]
[321936742,1712643046059,-1198.01,0.00020821,2]
[321936745,1712643046068,-500.0,0.00020821,2]
[321936748,1712643046077,-500.0,0.00020821,2]
[321936751,1712643046087,-500.0,0.00020821,2]
[321936753,1712643046096,-660.37,0.00020821,2]
[321936756,1712643046106,-3030.52,0.00020821,2]
[321936759,1712643046115,-500.0,0.00020821,2]
[321936762,1712643046125,-500.0,0.00020821,2]
[321936765,1712643046134,-500.0,0.00020821,2]
[321936768,1712643046147,-500.0,0.00020821,2]
[321936771,1712643046156,-653.24,0.00020821,2]
[321936774,1712643046166,-801.82,0.00020821,2]
[321936777,1712643046175,-725.05,0.00020821,2]
[321936780,1712643046185,-500.0,0.00020821,2]
[321936783,1712643046194,-2652.08,0.00020821,2]
[321936785,1712643046203,-1213.92,0.00020821,2]
[321936787,1712643046213,-500.0,0.00020821,2]
[321936789,1712643046222,-500.0,0.00020821,2]
[321936791,1712643046231,-500.0,0.00020821,2]
[321936793,1712643046241,-1736.21,0.00020821,2]
[321936796,1712643046250,-500.0,0.00020821,2]
[321936798,1712643046259,-4845.63,0.00020821,2]
[321936801,1712643046269,-500.0,0.00020821,2]
[321936804,1712643046279,-500.0,0.00020821,2]
[321936807,1712643046288,-500.0,0.00020821,2]
[321936811,1712643046297,-508.31478515,0.00020821,2]
[321936814,1712643046306,-510.54665968,0.00020821,2]
[321936816,1712643046315,-563.07,0.00020821,2]
[321936819,1712643046326,-500.0,0.00020821,2]
[321936821,1712643046335,-501.69753348,0.00020821,2]
[321936823,1712643046345,-500.0,0.00020821,2]
[321936825,1712643046354,-1464.16,0.00020821,2]
[321936827,1712643046364,-500.0,0.00020821,2]
[321936829,1712643046373,-626.72,0.00020821,2]
[321936830,1712643046383,-988.03,0.00020821,2]
[321936832,1712643046392,-500.0,0.00020821,2]
[321936834,1712643046402,-500.0,0.00020821,2]
[321936836,1712643046411,-1312.01,0.00020821,2]
[321936838,1712643046420,-3363.77,0.00020821,2]
[321936840,1712643046430,-509.31287673,0.00020821,2]
[321936842,1712643046439,-10876.36,0.00020821,2]
[321936844,1712643046449,-8298.03,0.00020821,2]
[321936846,1712643046458,-500.0,0.00020821,2]
[321936848,1712643046468,-519.14096932,0.00020821,2]
[321936850,1712643046477,-500.0,0.00020821,2]
[321936852,1712643046487,-1237.69,0.00020821,2]
[321936854,1712643046496,-500.0,0.00020821,2]
[321936856,1712643046506,-601.78,0.00020821,2]
[321936858,1712643046515,-500.0,0.00020821,2]
[321936860,1712643046525,-356.5876184,0.00020821,2]
[321936862,1712643046535,-614.85960797,0.00020821,2]
[321936865,1712643046545,-500.0,0.00020821,2]
[321936867,1712643046554,-500.0,0.00020821,2]
[321936869,1712643046564,-1515.58,0.00020821,2]
[321936871,1712643046574,-500.0,0.00020821,2]
[321936873,1712643046584,-500.0,0.00020821,2]
[321936875,1712643046593,-2636.55,0.00020821,2]
[321936877,1712643046604,-495.25607,0.00020821,2]
[321936879,1712643046613,-934.53,0.00020821,2]
[321936891,1712643046725,-3917.37,0.00020821,2]
[321936894,1712643046735,-1102.73,0.00020821,2]
[321936896,1712643046744,-671.25,0.00020821,2]
[321936898,1712643046753,-500.0,0.00020821,2]
[321936900,1712643046762,-500.0,0.00020821,2]
[321936902,1712643046771,-1059.22,0.00020821,2]
[321936904,1712643046780,-1056.03,0.00020821,2]
[321936906,1712643046791,-500.0,0.00020821,2]
[321936908,1712643046800,-500.0,0.00020821,2]
[321936910,1712643046810,-1670.5,0.00020821,2]
[321936912,1712643046822,-500.0,0.00020821,2]
[321936914,1712643046837,-500.0,0.00020821,2]
[321936916,1712643046846,-500.0,0.00020821,2]
[321936918,1712643046855,-500.0,0.00020821,2]
[321936920,1712643046865,-1877.09,0.00020821,2]
[321936921,1712643046874,-500.0,0.00020821,2]
[321936923,1712643046883,-500.0,0.00020821,2]
[321936926,1712643046893,-512.85357473,0.00020821,2]
[321936927,1712643046902,-509.80091351,0.00020821,2]
[321936929,1712643046912,-500.0,0.00020821,2]
[321936931,1712643046921,-500.0,0.00020821,2]
[321936934,1712643046931,-1583.55,0.00020821,2]
[321936936,1712643046941,-500.0,0.00020821,2]
[321936938,1712643046950,-503.16140436,0.00020821,2]
[321936940,1712643046959,-500.0,0.00020821,2]
[321936942,1712643046968,-2191.95,0.00020821,2]
[321936944,1712643046977,-500.0,0.00020821,2]
[321936946,1712643046986,-500.0,0.00020821,2]
[321936947,1712643046995,-164.172226,0.00020821,2]
[321936949,1712643047004,-500.0,0.00020821,2]
[321936951,1712643047013,-500.0,0.00020821,2]
[321936953,1712643047022,-5752.07,0.00020821,2]
[321936956,1712643047032,-3204.4,0.00020821,2]
[321936958,1712643047041,-500.0,0.00020821,2]
[321936960,1712643047050,-500.0,0.00020821,2]
[321936962,1712643047059,-826.42,0.00020821,2]
[321936964,1712643047068,-500.0,0.00020821,2]
[321936966,1712643047078,-500.0,0.00020821,2]
[321936968,1712643047087,-953.97,0.00020821,2]
[321936970,1712643047096,-500.0,0.00020821,2]
[321936972,1712643047105,-500.0,0.00020821,2]
[321936974,1712643047114,-2300.79,0.00020821,2]
[321936976,1712643047123,-500.0,0.00020821,2]